[Event "*** Qualifier 4: Titled Tuesday 3|2 Blitz"]
[Site "Chess.com"]
[Date "2017.04.25"]
[Round "5"]
[White "abubakrtagelsir"]
[Black "Rock700chess"]
[Result "1-0"]
[WhiteElo "2142"]
[BlackElo "2271"]
[TimeControl "180+2"]
[EndTime "14:04:18 PDT"]
[Termination "abubakrtagelsir won by resignation"]

1. e4 {[%clk 0:02:59.2]} 1... e6 {[%clk 0:02:45.9]} 2. d4 {[%clk 0:02:59.7]}
2... d5 {[%clk 0:02:47]} 3. Nc3 {[%clk 0:02:58.7]} 3... Nf6 {[%clk 0:02:46.8]}
4. e5 {[%clk 0:02:58]} 4... Nfd7 {[%clk 0:02:48.3]} 5. f4 {[%clk 0:02:57.9]}
5... c5 {[%clk 0:02:49.7]} 6. Nf3 {[%clk 0:02:57.7]} 6... Nc6 {[%clk 0:02:51.1]}
7. Be3 {[%clk 0:02:57.4]} 7... a6 {[%clk 0:02:51.5]} 8. Qd2 {[%clk 0:02:56.9]}
8... b5 {[%clk 0:02:52.3]} 9. dxc5 {[%clk 0:02:40.9]} 9... Nxc5 {[%clk
0:02:51.6]} 10. a3 {[%clk 0:02:38]} 10... Qa5 {[%clk 0:02:48.6]} 11. f5 {[%clk
0:02:22.1]} 11... b4 {[%clk 0:02:41.3]} 12. Nd1 {[%clk 0:01:54.8]} 12... Ne4
{[%clk 0:02:36.3]} 13. Qe2 {[%clk 0:01:38.1]} 13... bxa3+ {[%clk 0:02:18.9]} 14.
c3 {[%clk 0:01:19.4]} 14... exf5 {[%clk 0:02:19.7]} 15. Nd4 {[%clk 0:00:57]}
15... Nxe5 {[%clk 0:02:14.1]} 16. Qc2 {[%clk 0:00:29.2]} 16... Be7 {[%clk
0:01:58.9]} 17. b4 {[%clk 0:00:21.4]} 17... Bxb4 {[%clk 0:00:58.3]} 18. cxb4
{[%clk 0:00:21.6]} 18... Qxb4+ {[%clk 0:01:00.2]} 19. Nc3 {[%clk 0:00:17.9]}
19... Nxc3 {[%clk 0:00:54.3]} 20. Bd2 {[%clk 0:00:18]} 20... Qxd4 {[%clk
0:00:41.1]} 21. Bxc3 {[%clk 0:00:18.6]} 21... Qf4 {[%clk 0:00:42.5]} 22. Qe2
{[%clk 0:00:17.2]} 22... f6 {[%clk 0:00:41.7]} 23. g3 {[%clk 0:00:14.6]} 23...
Qe4 {[%clk 0:00:39]} 24. Bg2 {[%clk 0:00:13.5]} 24... Nd3+ {[%clk 0:00:24.8]}
25. Kd2 {[%clk 0:00:13.8]} 25... Qxe2+ {[%clk 0:00:24.5]} 26. Kxe2 {[%clk
0:00:14.4]} 26... Nc5 {[%clk 0:00:15.8]} 27. Bxd5 {[%clk 0:00:14.2]} 27... Bb7
{[%clk 0:00:14.7]} 28. Bxb7 {[%clk 0:00:13.6]} 28... Nxb7 {[%clk 0:00:16.6]} 29.
Rxa3 {[%clk 0:00:14]} 29... Kf7 {[%clk 0:00:17.5]} 30. Rha1 {[%clk 0:00:14]}
30... Rhe8+ {[%clk 0:00:18.7]} 31. Kf2 {[%clk 0:00:14.5]} 31... Nc5 {[%clk
0:00:19.6]} 32. Bb4 {[%clk 0:00:13.2]} 32... Ne4+ {[%clk 0:00:18.9]} 33. Kg2
{[%clk 0:00:14.3]} 33... Re6 {[%clk 0:00:20]} 34. Rc1 {[%clk 0:00:14.4]} 34...
Kg6 {[%clk 0:00:20.5]} 35. Rc7 {[%clk 0:00:14.6]} 35... a5 {[%clk 0:00:17]} 36.
Be1 {[%clk 0:00:13.7]} 36... Rb6 {[%clk 0:00:12.1]} 37. Rc2 {[%clk 0:00:08.2]}
37... a4 {[%clk 0:00:07.2]} 38. Rca2 {[%clk 0:00:08.1]} 38... Rb3 {[%clk
0:00:04.7]} 39. Rxb3 {[%clk 0:00:08]} 39... axb3 {[%clk 0:00:06.6]} 40. Rxa8
{[%clk 0:00:08.7]} 40... b2 {[%clk 0:00:08]} 41. Rb8 {[%clk 0:00:09.5]} 1-0

[Event "*** Qualifier 4: Titled Tuesday 3|2 Blitz"]
[Site "Chess.com"]
[Date "2017.04.25"]
[Round "5"]
[White "Konavets"]
[Black "LyonBeast"]
[Result "1/2-1/2"]
[WhiteElo "2705"]
[BlackElo "2789"]
[TimeControl "180+2"]
[EndTime "14:04:23 PDT"]
[Termination "Game drawn by repetition"]

1. e4 {[%clk 0:03:02]} 1... c5 {[%clk 0:02:58.8]} 2. Nf3 {[%clk 0:03:03.2]} 2...
d6 {[%clk 0:02:59.3]} 3. d4 {[%clk 0:03:02.4]} 3... cxd4 {[%clk 0:02:59.8]} 4.
Nxd4 {[%clk 0:03:04.3]} 4... Nf6 {[%clk 0:02:59.9]} 5. Nc3 {[%clk 0:03:06]} 5...
a6 {[%clk 0:03:00]} 6. Be3 {[%clk 0:03:06.9]} 6... e5 {[%clk 0:02:52.4]} 7. Nb3
{[%clk 0:03:07.4]} 7... Be7 {[%clk 0:02:49.3]} 8. f3 {[%clk 0:03:08.2]} 8... Be6
{[%clk 0:02:50.5]} 9. Qd2 {[%clk 0:03:09.6]} 9... Nbd7 {[%clk 0:02:50.7]} 10. g4
{[%clk 0:03:02.4]} 10... b5 {[%clk 0:02:50.2]} 11. a4 {[%clk 0:03:03.4]} 11...
b4 {[%clk 0:02:45.8]} 12. Nd5 {[%clk 0:03:03.7]} 12... Bxd5 {[%clk 0:02:46.2]}
13. exd5 {[%clk 0:03:04.9]} 13... Nb6 {[%clk 0:02:45.7]} 14. a5 {[%clk
0:03:04.7]} 14... Nbxd5 {[%clk 0:02:28.4]} 15. g5 {[%clk 0:03:05.7]} 15... Nxe3
{[%clk 0:02:22.9]} 16. gxf6 {[%clk 0:03:06.8]} 16... Bxf6 {[%clk 0:02:17.2]} 17.
Qxe3 {[%clk 0:03:05.7]} 17... Bh4+ {[%clk 0:02:15]} 18. Kd1 {[%clk 0:02:58.5]}
18... O-O {[%clk 0:02:16.1]} 19. Rg1 {[%clk 0:02:59.8]} 19... Re8 {[%clk
0:02:10.8]} 20. Ra4 {[%clk 0:02:35.4]} 20... Rb8 {[%clk 0:02:00.7]} 21. Bxa6
{[%clk 0:02:32.9]} 21... d5 {[%clk 0:02:01.7]} 22. Be2 {[%clk 0:02:24.4]} 22...
e4 {[%clk 0:02:01.9]} 23. Nd4 {[%clk 0:02:11]} 23... Bf6 {[%clk 0:01:53.4]} 24.
Bb5 {[%clk 0:01:44.7]} 24... Rxb5 {[%clk 0:01:43]} 25. Nxb5 {[%clk 0:01:43]}
25... d4 {[%clk 0:01:44.4]} 26. Qf4 {[%clk 0:01:40.4]} 26... Be5 {[%clk
0:01:06.5]} 27. Qg5 {[%clk 0:01:21.4]} 27... Qd7 {[%clk 0:00:51.9]} 28. f4
{[%clk 0:01:07.9]} 28... Qxb5 {[%clk 0:00:30.9]} 29. fxe5 {[%clk 0:01:09.1]}
29... g6 {[%clk 0:00:32.4]} 30. b3 {[%clk 0:01:10.2]} 30... d3 {[%clk
0:00:25.7]} 31. e6 {[%clk 0:00:50.4]} 31... f5 {[%clk 0:00:20.4]} 32. Qf6 {[%clk
0:00:50.6]} 32... Rc8 {[%clk 0:00:19.7]} 33. Qf7+ {[%clk 0:00:41.9]} 33... Kh8
{[%clk 0:00:19.9]} 34. e7 {[%clk 0:00:43.6]} 34... Qc5 {[%clk 0:00:12.4]} 35.
Qf6+ {[%clk 0:00:06.9]} 35... Kg8 {[%clk 0:00:13.2]} 36. Rxg6+ {[%clk
0:00:08.8]} 36... hxg6 {[%clk 0:00:14.2]} 37. Qxg6+ {[%clk 0:00:10.7]} 37... Kh8
{[%clk 0:00:15.9]} 38. e8=Q+ {[%clk 0:00:12.4]} 38... Rxe8 {[%clk 0:00:16.1]}
39. Qxe8+ {[%clk 0:00:14.3]} 39... Kg7 {[%clk 0:00:16.9]} 40. Qd7+ {[%clk
0:00:14.5]} 40... Kh6 {[%clk 0:00:14.7]} 41. Qe6+ {[%clk 0:00:04.9]} 41... Kg7
{[%clk 0:00:09.7]} 42. Qd7+ {[%clk 0:00:03.9]} 42... Kf6 {[%clk 0:00:08]} 43.
Qd8+ {[%clk 0:00:05.1]} 43... Kf7 {[%clk 0:00:07.5]} 44. Qd7+ {[%clk 0:00:06.3]}
44... Kf6 {[%clk 0:00:08.7]} 45. Qd8+ {[%clk 0:00:07.4]} 45... Kf7 {[%clk
0:00:10.2]} 46. cxd3 {[%clk 0:00:04.6]} 46... Qg1+ {[%clk 0:00:10.7]} 47. Ke2
{[%clk 0:00:06]} 47... Qxh2+ {[%clk 0:00:08.9]} 48. Ke3 {[%clk 0:00:06.5]} 48...
Qg3+ {[%clk 0:00:10.5]} 49. Ke2 {[%clk 0:00:07.9]} 49... Qg2+ {[%clk 0:00:10.6]}
50. Ke1 {[%clk 0:00:09.3]} 50... Qg1+ {[%clk 0:00:10.6]} 51. Ke2 {[%clk
0:00:10.8]} 51... Qg2+ {[%clk 0:00:12.1]} 52. Ke1 {[%clk 0:00:12.4]} 52... Qg1+
{[%clk 0:00:13.6]} 53. Ke2 {[%clk 0:00:14]} 53... Qg2+ {[%clk 0:00:15.1]}
1/2-1/2

[Event "*** Qualifier 4: Titled Tuesday 3|2 Blitz"]
[Site "Chess.com"]
[Date "2017.04.25"]
[Round "5"]
[White "daro94"]
[Black "RichardLeyvaP"]
[Result "1-0"]
[WhiteElo "2729"]
[BlackElo "2414"]
[TimeControl "180+2"]
[EndTime "14:04:31 PDT"]
[Termination "daro94 won on time"]

1. d4 {[%clk 0:02:56.2]} 1... Nf6 {[%clk 0:03:00.1]} 2. Bf4 {[%clk 0:02:56.8]}
2... g6 {[%clk 0:03:00.3]} 3. e3 {[%clk 0:02:57.1]} 3... Bg7 {[%clk 0:03:01]} 4.
Nf3 {[%clk 0:02:58.6]} 4... O-O {[%clk 0:03:02]} 5. h3 {[%clk 0:03:00.2]} 5...
d6 {[%clk 0:03:03.1]} 6. Be2 {[%clk 0:03:00.4]} 6... c5 {[%clk 0:03:03.2]} 7. c3
{[%clk 0:02:59.1]} 7... cxd4 {[%clk 0:03:03.6]} 8. cxd4 {[%clk 0:03:00.3]} 8...
Nc6 {[%clk 0:03:05.5]} 9. Nc3 {[%clk 0:03:00.4]} 9... Bf5 {[%clk 0:02:59.2]} 10.
O-O {[%clk 0:03:01.2]} 10... Ne4 {[%clk 0:03:00.3]} 11. Qb3 {[%clk 0:02:46.1]}
11... Nxc3 {[%clk 0:02:55.6]} 12. bxc3 {[%clk 0:02:48]} 12... Na5 {[%clk
0:02:53.3]} 13. Qb4 {[%clk 0:02:29.2]} 13... Rc8 {[%clk 0:02:32.9]} 14. Rfc1
{[%clk 0:02:15.8]} 14... h6 {[%clk 0:02:32]} 15. c4 {[%clk 0:02:05.2]} 15... b6
{[%clk 0:02:31.4]} 16. Bg3 {[%clk 0:02:02.9]} 16... Re8 {[%clk 0:02:31.3]} 17.
Rd1 {[%clk 0:01:49.2]} 17... Be4 {[%clk 0:02:03.2]} 18. Rac1 {[%clk 0:01:44.3]}
18... Nc6 {[%clk 0:01:30.8]} 19. Qa4 {[%clk 0:01:29.8]} 19... Na5 {[%clk
0:01:22.1]} 20. Nd2 {[%clk 0:01:23.7]} 20... Bc6 {[%clk 0:01:22]} 21. Qa3 {[%clk
0:01:23]} 21... Ba8 {[%clk 0:01:14.5]} 22. Nb3 {[%clk 0:01:22.4]} 22... Nxb3
{[%clk 0:01:12.3]} 23. axb3 {[%clk 0:01:24.3]} 23... a5 {[%clk 0:01:04.3]} 24.
b4 {[%clk 0:01:22.5]} 24... axb4 {[%clk 0:01:01]} 25. Qxb4 {[%clk 0:01:24.4]}
25... Bc6 {[%clk 0:00:58]} 26. Rb1 {[%clk 0:01:08.1]} 26... Rb8 {[%clk
0:00:57.3]} 27. Bf1 {[%clk 0:01:06.8]} 27... Be4 {[%clk 0:00:52.4]} 28. Ra1
{[%clk 0:01:06.9]} 28... Qc7 {[%clk 0:00:50.6]} 29. Ra6 {[%clk 0:01:01.4]} 29...
Rec8 {[%clk 0:00:36.6]} 30. Rda1 {[%clk 0:01:00.9]} 30... e5 {[%clk 0:00:31.8]}
31. dxe5 {[%clk 0:00:57]} 31... dxe5 {[%clk 0:00:32.9]} 32. c5 {[%clk
0:00:33.2]} 32... Bf5 {[%clk 0:00:09.2]} 33. cxb6 {[%clk 0:00:27.9]} 33... Qb7
{[%clk 0:00:08.5]} 34. Qb3 {[%clk 0:00:21.1]} 34... Be6 {[%clk 0:00:08.8]} 35.
Qb5 {[%clk 0:00:19.5]} 35... Rc6 {[%clk 0:00:09.5]} 36. Rb1 {[%clk 0:00:18.5]}
36... Bf5 {[%clk 0:00:10.3]} 37. Rb2 {[%clk 0:00:11.5]} 37... Rc1 {[%clk
0:00:11.4]} 38. Kh2 {[%clk 0:00:12.5]} 38... Bd7 {[%clk 0:00:10.1]} 39. Qe2
{[%clk 0:00:09.6]} 39... h5 {[%clk 0:00:10.3]} 40. Ra7 {[%clk 0:00:10.8]} 40...
Qd5 {[%clk 0:00:09.9]} 41. Rd2 {[%clk 0:00:09]} 41... Qe6 {[%clk 0:00:03.8]} 42.
Rdxd7 {[%clk 0:00:10.1]} 42... Rxb6 {[%clk 0:00:03.9]} 43. Rxf7 {[%clk
0:00:10.8]} 43... Qxf7 {[%clk 0:00:05.2]} 44. Rxf7 {[%clk 0:00:11.6]} 44... Kxf7
{[%clk 0:00:07.1]} 45. Qa2+ {[%clk 0:00:10.4]} 45... Kf8 {[%clk 0:00:06.1]} 46.
Qa8+ {[%clk 0:00:10.5]} 46... Ke7 {[%clk 0:00:05.7]} 47. Qa7+ {[%clk 0:00:11.9]}
1-0

[Event "*** Qualifier 4: Titled Tuesday 3|2 Blitz"]
[Site "Chess.com"]
[Date "2017.04.25"]
[Round "5"]
[White "jcibarra"]
[Black "sergiochess83"]
[Result "1-0"]
[WhiteElo "2695"]
[BlackElo "2713"]
[TimeControl "180+2"]
[EndTime "14:04:35 PDT"]
[Termination "jcibarra won by resignation"]

1. e4 {[%clk 0:03:02]} 1... e5 {[%clk 0:03:00.4]} 2. Nf3 {[%clk 0:03:03]} 2...
Nc6 {[%clk 0:03:01.5]} 3. Bb5 {[%clk 0:03:04.6]} 3... a6 {[%clk 0:03:02.5]} 4.
Bxc6 {[%clk 0:03:05.2]} 4... dxc6 {[%clk 0:03:02.9]} 5. O-O {[%clk 0:03:07.1]}
5... Bg4 {[%clk 0:03:02.4]} 6. h3 {[%clk 0:03:07.7]} 6... h5 {[%clk 0:03:02.3]}
7. d3 {[%clk 0:03:08.5]} 7... Qf6 {[%clk 0:02:58.2]} 8. Nbd2 {[%clk 0:03:09.3]}
8... g5 {[%clk 0:02:51.2]} 9. Nc4 {[%clk 0:03:05.7]} 9... Bxf3 {[%clk
0:02:51.7]} 10. Qxf3 {[%clk 0:03:07.6]} 10... Qxf3 {[%clk 0:02:52.7]} 11. gxf3
{[%clk 0:03:09.5]} 11... f6 {[%clk 0:02:51.9]} 12. h4 {[%clk 0:03:11]} 12...
gxh4 {[%clk 0:02:49.3]} 13. f4 {[%clk 0:03:12.4]} 13... exf4 {[%clk 0:02:44.4]}
14. Bxf4 {[%clk 0:03:12.8]} 14... O-O-O {[%clk 0:02:45.2]} 15. Kh2 {[%clk
0:03:06.1]} 15... Bc5 {[%clk 0:02:46.2]} 16. Be3 {[%clk 0:03:01.6]} 16... Bd6+
{[%clk 0:02:40.8]} 17. Nxd6+ {[%clk 0:03:02.1]} 17... cxd6 {[%clk 0:02:41.8]}
18. Rg1 {[%clk 0:02:58.1]} 18... Ne7 {[%clk 0:02:37.6]} 19. Rg7 {[%clk
0:02:57.2]} 19... Rd7 {[%clk 0:02:37.6]} 20. Rag1 {[%clk 0:02:56.2]} 20... Rf8
{[%clk 0:01:48.9]} 21. Rh7 {[%clk 0:02:46.3]} 21... Kd8 {[%clk 0:01:35.3]} 22.
Rgg7 {[%clk 0:02:41.1]} 22... Ke8 {[%clk 0:01:33.3]} 23. Kh3 {[%clk 0:02:29]}
23... Rg8 {[%clk 0:01:22.3]} 24. Rxg8+ {[%clk 0:02:13.7]} 24... Nxg8 {[%clk
0:01:22.9]} 25. Rxh5 {[%clk 0:01:55]} 25... Rg7 {[%clk 0:01:18.1]} 26. Rxh4
{[%clk 0:01:55.1]} 26... Ne7 {[%clk 0:01:17.9]} 27. Rg4 {[%clk 0:01:48]} 27...
Rh7+ {[%clk 0:01:18.6]} 28. Kg2 {[%clk 0:01:48.1]} 28... Kf7 {[%clk 0:01:20]}
29. Rg3 {[%clk 0:01:35.6]} 29... d5 {[%clk 0:01:19.5]} 30. Rh3 {[%clk
0:01:25.3]} 30... Rg7+ {[%clk 0:01:20.1]} 31. Kf3 {[%clk 0:01:23.7]} 31... Ke6
{[%clk 0:01:19.4]} 32. Rh8 {[%clk 0:01:19.9]} 32... Ng6 {[%clk 0:01:18.2]} 33.
Rb8 {[%clk 0:01:15.6]} 33... Ne5+ {[%clk 0:01:16.1]} 34. Ke2 {[%clk 0:01:15.9]}
34... dxe4 {[%clk 0:01:14.1]} 35. dxe4 {[%clk 0:01:16.5]} 35... Nc4 {[%clk
0:01:14.2]} 36. Bd4 {[%clk 0:01:16.5]} 36... Rd7 {[%clk 0:01:10.2]} 37. Bc3
{[%clk 0:01:15]} 37... Nd6 {[%clk 0:01:10.5]} 38. Ke3 {[%clk 0:00:46.7]} 38...
Rh7 {[%clk 0:01:00.7]} 39. Rf8 {[%clk 0:00:42.4]} 39... f5 {[%clk 0:00:55]} 40.
Rf6+ {[%clk 0:00:40.8]} 40... Ke7 {[%clk 0:00:55.7]} 41. e5 {[%clk 0:00:33.9]}
41... Rh3+ {[%clk 0:00:56.8]} 42. f3 {[%clk 0:00:33.9]} 42... Ne4 {[%clk
0:00:58.1]} 43. Rxf5 {[%clk 0:00:32.6]} 43... Nxc3 {[%clk 0:00:54.8]} 44. bxc3
{[%clk 0:00:34.5]} 44... Ke6 {[%clk 0:00:56.7]} 45. Rg5 {[%clk 0:00:35.5]} 45...
Rh2 {[%clk 0:00:57.6]} 46. f4 {[%clk 0:00:35.1]} 46... Rxc2 {[%clk 0:00:58.1]}
47. Kd4 {[%clk 0:00:36.3]} 47... Rf2 {[%clk 0:00:55.7]} 48. Rg6+ {[%clk
0:00:35.7]} 48... Kf7 {[%clk 0:00:54.3]} 49. Rf6+ {[%clk 0:00:36.5]} 49... Ke7
{[%clk 0:00:55]} 50. a4 {[%clk 0:00:38]} 50... a5 {[%clk 0:00:52.3]} 51. Ke4
{[%clk 0:00:38]} 51... Ra2 {[%clk 0:00:50.3]} 52. Rh6 {[%clk 0:00:38.7]} 52...
Rxa4+ {[%clk 0:00:49.5]} 53. Kf5 {[%clk 0:00:40.3]} 53... b5 {[%clk 0:00:47.5]}
54. Rxc6 {[%clk 0:00:40.5]} 54... Rc4 {[%clk 0:00:47.2]} 55. Ra6 {[%clk
0:00:40.2]} 55... a4 {[%clk 0:00:46.7]} 56. Ra7+ {[%clk 0:00:40.8]} 56... Kd8
{[%clk 0:00:47.7]} 57. e6 {[%clk 0:00:42]} 57... Rxc3 {[%clk 0:00:40.7]} 58. Kf6
{[%clk 0:00:42.3]} 58... Re3 {[%clk 0:00:41]} 59. e7+ {[%clk 0:00:38.5]} 59...
Ke8 {[%clk 0:00:38]} 60. Ra8+ {[%clk 0:00:39.6]} 60... Kd7 {[%clk 0:00:39]} 61.
Rd8+ {[%clk 0:00:38.6]} 61... Kc6 {[%clk 0:00:39.9]} 62. e8=Q+ {[%clk
0:00:38.9]} 62... Rxe8 {[%clk 0:00:40.8]} 63. Rxe8 {[%clk 0:00:40.8]} 63... a3
{[%clk 0:00:42.2]} 64. Ra8 {[%clk 0:00:40.9]} 64... b4 {[%clk 0:00:43.1]} 65.
Ke5 {[%clk 0:00:42.5]} 65... Kc5 {[%clk 0:00:42.8]} 66. f5 {[%clk 0:00:43.4]}
1-0

[Event "*** Qualifier 4: Titled Tuesday 3|2 Blitz"]
[Site "Chess.com"]
[Date "2017.04.25"]
[Round "5"]
[White "Wolverine_master"]
[Black "ABDELAZEEZ-M"]
[Result "0-1"]
[WhiteElo "1970"]
[BlackElo "2160"]
[TimeControl "180+2"]
[EndTime "14:04:38 PDT"]
[Termination "ABDELAZEEZ-M won by resignation"]

1. Nf3 {[%clk 0:03:02]} 1... Nf6 {[%clk 0:02:59]} 2. g3 {[%clk 0:03:02.3]} 2...
g6 {[%clk 0:02:59.7]} 3. Bg2 {[%clk 0:03:03.2]} 3... Bg7 {[%clk 0:02:57.2]} 4.
c4 {[%clk 0:03:03.7]} 4... c5 {[%clk 0:02:53.1]} 5. O-O {[%clk 0:03:05]} 5...
O-O {[%clk 0:02:53]} 6. Nc3 {[%clk 0:03:06.5]} 6... Nc6 {[%clk 0:02:53.7]} 7. d3
{[%clk 0:03:08]} 7... d5 {[%clk 0:02:53.5]} 8. cxd5 {[%clk 0:03:06.2]} 8... Nxd5
{[%clk 0:02:54.5]} 9. Nxd5 {[%clk 0:03:05.9]} 9... Qxd5 {[%clk 0:02:55.6]} 10.
Be3 {[%clk 0:03:07.5]} 10... Qh5 {[%clk 0:02:53]} 11. Rc1 {[%clk 0:02:37.2]}
11... b6 {[%clk 0:02:53.1]} 12. Ne5 {[%clk 0:02:27.1]} 12... Bxe5 {[%clk
0:02:45.3]} 13. Bxc6 {[%clk 0:02:27.8]} 13... Rb8 {[%clk 0:02:37.4]} 14. Bf3
{[%clk 0:02:01.4]} 14... Bg4 {[%clk 0:02:37.3]} 15. Bxg4 {[%clk 0:01:46.8]}
15... Qxg4 {[%clk 0:02:38.1]} 16. Rc4 {[%clk 0:01:47.7]} 16... Qe6 {[%clk
0:02:37.7]} 17. b3 {[%clk 0:01:19.7]} 17... Rbd8 {[%clk 0:02:37.8]} 18. Bh6
{[%clk 0:01:18.2]} 18... Rfe8 {[%clk 0:02:29.9]} 19. Re1 {[%clk 0:01:07.9]}
19... f5 {[%clk 0:02:28.1]} 20. Qc1 {[%clk 0:01:01.1]} 20... Bd4 {[%clk
0:02:16.6]} 21. Be3 {[%clk 0:00:45.5]} 21... Bf6 {[%clk 0:02:14.7]} 22. Bg5
{[%clk 0:00:44.8]} 22... Bxg5 {[%clk 0:02:11.5]} 23. Qxg5 {[%clk 0:00:45.5]}
23... Rxd3 {[%clk 0:02:12.4]} 24. exd3 {[%clk 0:00:30]} 24... Qxe1+ {[%clk
0:02:12.6]} 25. Kg2 {[%clk 0:00:31.5]} 25... Qe2 {[%clk 0:02:03.6]} 26. h4
{[%clk 0:00:31.7]} 26... Qxd3 {[%clk 0:02:03.2]} 27. h5 {[%clk 0:00:33.1]} 27...
Qd5+ {[%clk 0:02:02.2]} 28. Kg1 {[%clk 0:00:31.9]} 28... Qf7 {[%clk 0:02:02.2]}
29. Rh4 {[%clk 0:00:25.6]} 29... Qf6 {[%clk 0:02:00.9]} 30. Qh6 {[%clk
0:00:17.6]} 30... g5 {[%clk 0:02:01.7]} 31. Qxf6 {[%clk 0:00:15.9]} 31... exf6
{[%clk 0:02:02.5]} 32. Ra4 {[%clk 0:00:17.8]} 32... Re7 {[%clk 0:02:02.8]} 33.
Kg2 {[%clk 0:00:19.2]} 33... Kf7 {[%clk 0:02:02.9]} 34. f4 {[%clk 0:00:19.7]}
34... h6 {[%clk 0:02:03.1]} 35. Rc4 {[%clk 0:00:19]} 35... Ke6 {[%clk
0:02:03.7]} 36. Kf3 {[%clk 0:00:20.2]} 36... Kd5 {[%clk 0:02:04.4]} 37. Rc2
{[%clk 0:00:21.2]} 37... Re4 {[%clk 0:02:03]} 38. Rd2+ {[%clk 0:00:22]} 38...
Rd4 {[%clk 0:02:04]} 39. Re2 {[%clk 0:00:22.5]} 39... Re4 {[%clk 0:02:04.7]} 40.
Rd2+ {[%clk 0:00:23.4]} 40... Kc6 {[%clk 0:02:05]} 41. Rd8 {[%clk 0:00:24.3]}
41... g4+ {[%clk 0:02:00.5]} 42. Kf2 {[%clk 0:00:24.6]} 42... c4 {[%clk
0:02:01.4]} 43. bxc4 {[%clk 0:00:25.2]} 43... Rxc4 {[%clk 0:02:02.2]} 44. Rh8
{[%clk 0:00:26.8]} 44... Rc2+ {[%clk 0:02:02.7]} 45. Ke3 {[%clk 0:00:24.1]}
45... Rxa2 {[%clk 0:02:03.4]} 46. Rxh6 {[%clk 0:00:25.6]} 46... Kd5 {[%clk
0:02:02.8]} 47. Rxf6 {[%clk 0:00:26.4]} 47... Ra3+ {[%clk 0:02:03.4]} 48. Kf2
{[%clk 0:00:27.6]} 48... Rf3+ {[%clk 0:02:01.3]} 49. Kg2 {[%clk 0:00:28.3]}
49... Ke4 {[%clk 0:01:54.4]} 50. h6 {[%clk 0:00:26]} 50... Rc3 {[%clk
0:01:54.5]} 51. Re6+ {[%clk 0:00:24.9]} 51... Kd4 {[%clk 0:01:54.5]} 52. Rd6+
{[%clk 0:00:25.8]} 52... Ke3 {[%clk 0:01:54.3]} 53. Re6+ {[%clk 0:00:27]} 53...
Kd4 {[%clk 0:01:55.2]} 54. Rd6+ {[%clk 0:00:28.3]} 54... Ke4 {[%clk 0:01:56.2]}
55. Re6+ {[%clk 0:00:27.4]} 55... Kd3 {[%clk 0:01:57.2]} 56. Rd6+ {[%clk
0:00:28.1]} 56... Kc2 {[%clk 0:01:58.3]} 57. Rf6 {[%clk 0:00:17.5]} 57... b5
{[%clk 0:01:56.1]} 58. h7 {[%clk 0:00:17.9]} 58... Rc8 {[%clk 0:01:55.1]} 59.
Rxf5 {[%clk 0:00:18.7]} 59... b4 {[%clk 0:01:55.8]} 60. Rg5 {[%clk 0:00:16.9]}
60... Rh8 {[%clk 0:01:55.9]} 61. Rxg4 {[%clk 0:00:13.1]} 61... b3 {[%clk
0:01:56.4]} 62. f5 {[%clk 0:00:13.2]} 62... b2 {[%clk 0:01:57.5]} 63. Rc4+
{[%clk 0:00:14.7]} 63... Kb3 {[%clk 0:01:55.4]} 64. Rc7 {[%clk 0:00:08.1]} 64...
b1=Q {[%clk 0:01:56.4]} 65. Rb7+ {[%clk 0:00:09.4]} 65... Kc2 {[%clk 0:01:57.7]}
66. Rxb1 {[%clk 0:00:08.9]} 66... Kxb1 {[%clk 0:01:58.9]} 67. g4 {[%clk
0:00:10.5]} 67... Rxh7 {[%clk 0:02:00]} 68. g5 {[%clk 0:00:12.2]} 68... a5
{[%clk 0:02:00.9]} 69. g6 {[%clk 0:00:13.7]} 69... Rh5 {[%clk 0:02:01.5]} 70.
Kg3 {[%clk 0:00:03.7]} 70... Rxf5 {[%clk 0:02:00.9]} 71. Kg4 {[%clk 0:00:04.9]}
71... Rf1 {[%clk 0:02:01.9]} 0-1